bitfinex/quotes_SOLUSD_20240814
["timestamp","ask_amount","ask_price","bid_price","bid_amount"]
[1723653326085,20.0,145.66,145.42,22.6717]
[1723653326086,20.0,145.57,145.42,22.6717]
[1723653326263,47.55,145.56,145.42,22.6717]
[1723653326886,0.12549,145.55,145.42,22.6717]
[1723653327179,20.0,145.55,145.42,22.6717]
[1723653327385,47.55,145.56,145.42,22.6717]
[1723653327592,0.12549,145.55,145.42,22.6717]
[1723653327893,0.25098,145.55,145.42,22.6717]
[1723653328051,47.55,145.56,145.42,22.6717]
[1723653329402,47.55,145.56,145.43,45.0]
[1723653330607,47.55,145.56,145.44,0.12549]
[1723653331273,47.55,145.56,145.44,0.25098]
[1723653331509,0.12549,145.58,145.44,0.25098]
[1723653331690,47.55,145.56,145.44,0.25098]
[1723653332007,47.55,145.56,145.43,45.0]
[1723653332710,47.55,145.56,145.42,22.79719]
[1723653332875,47.55,145.53,145.42,22.6717]
[1723653333297,47.55,145.5,145.39,0.8412626]
[1723653334004,0.12549,145.49,145.39,0.8412626]
[1723653334181,67.55,145.5,145.39,0.8412626]
[1723653334384,47.55,145.5,145.39,0.8412626]
[1723653334678,42.79179,145.52,145.25,48.3912626]
[1723653334679,20.0,145.42,145.25,0.8412626]
[1723653334880,0.12549,145.43,145.26,63.8268]
[1723653335081,0.12549,145.43,145.26,16.2768]
[1723653335082,0.12549,145.39,145.26,16.2768]
[1723653335280,47.55,145.4,145.26,16.2768]
[1723653335511,0.25098,145.39,145.26,16.2768]
[1723653335707,47.55,145.4,145.26,16.2768]
[1723653336207,0.25098,145.43,145.27,46.05]
[1723653336385,20.25098,145.44,145.28,20.0]
[1723653337510,20.25098,145.44,145.29,45.12549]
[1723653337700,20.12549,145.44,145.3,20.12549]
[1723653337892,0.12549,145.41,145.26,16.2768]
[1723653338086,47.55,145.39,145.26,16.2768]
[1723653338710,0.12549,145.41,145.26,16.2768]
[1723653338889,20.0,145.41,145.26,16.2768]
[1723653339210,47.55,145.39,145.27,20.12549]
[1723653339418,47.55,145.39,145.27,20.0]
[1723653340288,20.25098,145.4,145.25,0.8412626]
[1723653340289,47.55,145.36,145.25,0.8412626]
[1723653342091,47.55,145.39,145.25,0.8412626]
[1723653342291,47.55,145.4,145.25,17.0254626]
[1723653342499,20.0,145.39,145.26,20.0]
[1723653343291,47.55,145.4,145.27,45.25098]
[1723653343493,47.55,145.4,145.27,45.12549]
[1723653347218,47.55,145.34,145.25,0.8412626]
[1723653348020,39.85,145.34,145.25,0.8412626]
[1723653348189,59.85,145.34,145.25,0.8412626]
[1723653348404,20.37647,145.33,145.25,0.8412626]
[1723653349704,0.12549,145.31,145.25,0.8412626]
[1723653349918,39.97549,145.31,145.25,0.8412626]
[1723653350218,39.85,145.31,145.25,0.8412626]
[1723653350385,0.12549,145.32,145.25,0.8412626]
[1723653350797,20.12549,145.29,145.25,0.8412626]
[1723653351422,0.12549,145.29,145.25,0.8412626]
[1723653352122,47.96549,145.32,145.25,0.8412626]
[1723653352325,47.84,145.32,145.25,0.8412626]
[1723653353209,92.84,145.39,145.25,0.8412626]
[1723653353210,67.84,145.35,145.25,0.8412626]
[1723653353993,67.84,145.32,145.25,0.8412626]
[1723653354398,47.84,145.32,145.25,0.8412626]
[1723653356291,0.12549,145.31,145.25,0.8412626]
[1723653357100,47.84,145.32,145.25,0.8412626]
[1723653357718,47.84,145.35,145.25,7.2745626]
[1723653358310,47.84,145.38,145.25,7.2745626]
[1723653359423,47.84,145.38,145.26,20.0]
[1723653359810,47.84,145.38,145.27,45.12549]
[1723653360227,47.84,145.41,145.28,20.0]
[1723653360442,2.66616295,145.43,145.3,54.1356]
[1723653360607,47.84,145.44,145.31,65.12549]
[1723653360810,47.84,145.44,145.25,0.8412626]
[1723653360811,47.84,145.34,145.25,0.8412626]
[1723653362122,47.84,145.37,145.25,0.8412626]
[1723653362431,20.12549,145.36,145.25,0.8412626]
[1723653362603,47.84,145.37,145.25,0.8412626]
[1723653363818,0.12549,145.36,145.25,0.8412626]
[1723653364206,47.84,145.37,145.25,0.8412626]
[1723653364408,0.12549,145.36,145.25,0.8412626]
[1723653364606,0.25098,145.36,145.25,0.8412626]
[1723653364808,0.37647,145.36,145.25,0.8412626]
[1723653365319,0.25098,145.36,145.25,0.8412626]
[1723653366529,0.12549,145.36,145.25,0.8412626]
[1723653366745,20.12549,145.26,145.25,0.8412626]
[1723653367142,20.50196,145.26,145.25,0.8412626]
[1723653367444,0.12549,145.21,145.15,6.1256]
[1723653367624,48.21647,145.21,145.15,6.1256]
[1723653367832,48.09098,145.21,145.15,6.1256]
[1723653368247,68.09098,145.21,145.1,6.9334626]
[1723653368542,0.12549,145.2,145.1,6.9334626]
[1723653368720,0.12549,145.19,145.1,6.9334626]
[1723653369043,0.25098,145.19,145.1,6.9334626]
[1723653369247,0.12549,145.17,145.1,6.9334626]
[1723653369743,0.25098,145.17,145.1,0.8412626]
[1723653370040,0.12549,145.14,145.1,0.8412626]
[1723653370340,0.25098,145.14,145.1,0.8412626]
[1723653371317,67.96549,145.11,145.1,0.8412626]
[1723653371518,47.96549,145.11,145.1,0.8412626]
[1723653371734,0.12549,145.11,145.1,0.8412626]
[1723653371939,0.12549,145.12,145.1,0.8412626]
[1723653372335,0.25098,145.13,145.1,0.8412626]
[1723653372953,47.84,145.18,145.1,0.8412626]
[1723653373117,47.84,145.18,145.11,6.8913]
[1723653373538,67.84,145.21,145.1,0.8412626]
[1723653374124,47.84,145.12,145.1,0.8412626]
[1723653374841,47.84,145.12,145.0,20.0]
[1723653374842,20.0,145.06,145.0,20.0]
[1723653375045,47.84,145.05,145.0,20.0]
[1723653375348,0.12549,145.04,145.0,20.0]
[1723653375725,47.84,145.05,145.0,20.0]
[1723653376155,0.12549,145.04,145.0,20.0]
[1723653376325,0.37647,145.04,145.0,20.0]
[1723653376650,0.12549,145.03,145.0,20.0]
[1723653378426,0.12549,145.01,145.0,20.0]
[1723653378629,0.25098,145.01,145.0,20.0]
[1723653378845,0.12549,145.01,145.0,20.0]
[1723653379354,0.12549,145.02,145.0,20.0]
[1723653379854,67.84,145.08,145.0,20.0]
[1723653380023,20.0,145.07,145.0,20.0]
[1723653380718,20.0,145.1,145.0,20.0]
[1723653380918,47.84,145.08,145.0,20.0]
[1723653381360,47.84,145.08,145.0,26.8964]
[1723653381661,67.84,145.02,145.0,4.20028224]
[1723653382347,20.12549,145.01,145.0,4.20028224]
[1723653382531,0.12549,144.97,144.95,0.8412626]
[1723653382730,48.21647,144.97,144.95,0.8412626]
[1723653383453,0.25098,144.97,144.95,0.8412626]
[1723653383661,0.25098,144.97,144.86,16.0917]
[1723653383662,0.12549,144.95,144.86,6.9032]
[1723653383838,0.12549,144.95,144.87,176.65195525]
[1723653384159,20.12549,144.95,144.87,176.65195525]
[1723653384455,0.25098,144.95,144.87,169.74935525]
[1723653384627,0.37647,144.95,144.87,169.74935525]
[1723653384834,0.12549,144.95,144.88,6.9021]
[1723653385034,0.12549,144.95,144.87,176.65185525]
[1723653385230,0.37647,144.95,144.87,169.74935525]
[1723653385493,0.50196,144.95,144.87,169.74935525]
[1723653385755,0.25098,144.95,144.87,176.65195525]
[1723653385930,0.25098,144.95,144.88,6.902]
[1723653386127,20.37647,144.95,144.87,169.74935525]
[1723653386325,47.84,144.93,144.87,169.74935525]
[1723653386521,0.25098,144.94,144.87,169.74935525]
[1723653386761,0.12549,144.94,144.87,176.65175525]
[1723653387047,0.25098,144.94,144.87,176.65175525]
[1723653387230,0.12549,144.94,144.88,6.9021]
[1723653387429,0.12549,144.96,144.89,6.9016]
[1723653387836,47.84,144.97,144.89,6.9013]
[1723653388031,47.84,144.97,144.87,169.74935525]
[1723653388032,47.84,144.97,144.9,6.901]
[1723653388257,0.12549,144.96,144.87,169.74935525]
[1723653388431,0.12549,144.96,144.88,6.9018]
[1723653388953,0.12549,144.96,144.87,169.74935525]
[1723653388954,0.12549,144.88,144.87,169.74935525]
[1723653389136,0.37647,144.88,144.87,118.42352518]
[1723653389344,45.50196,144.88,144.87,118.42352518]
[1723653390157,45.50196,144.88,144.81,181.23388137]
[1723653390466,47.96549,144.82,144.81,181.23388137]
[1723653390640,48.34196,144.82,144.81,181.23388137]
[1723653391163,48.34196,144.82,144.81,176.04232404]
[1723653391455,48.34196,144.82,144.74,192.71840748]
[1723653391456,20.0,144.77,144.74,192.71840748]
[1723653391657,47.84,144.76,144.74,192.71840748]
[1723653391960,20.0,144.77,144.74,192.71840748]
[1723653392164,47.84,144.76,144.74,192.71840748]
[1723653392372,65.12549,144.75,144.74,192.71840748]
[1723653392866,20.12549,144.75,144.74,192.71840748]
[1723653393063,65.12549,144.75,144.74,192.71840748]
[1723653393366,65.12549,144.75,144.74,192.59300748]
[1723653393551,65.50196,144.75,144.74,192.59300748]
[1723653394051,0.37647,144.75,144.74,192.59300748]
[1723653394265,0.12549,144.75,144.74,192.59300748]
[1723653394459,0.25098,144.75,144.74,192.59300748]
[1723653394648,20.0,144.79,144.74,192.59300748]
[1723653395039,20.0,144.75,144.74,189.54442102]
[1723653395232,20.0,144.75,144.74,174.78022102]
[1723653395437,20.0,144.77,144.74,174.78022102]
[1723653396252,20.0,144.79,144.74,174.78022102]
[1723653396650,20.0,144.81,144.74,174.78022102]
[1723653397040,20.0,144.85,144.74,174.78022102]
[1723653397366,41.2996,144.89,144.74,174.78022102]
[1723653397367,20.0,144.87,144.78,6.9069]
[1723653397567,20.0,144.87,144.74,174.78022102]
[1723653397568,20.0,144.87,144.74,222.62022102]
[1723653397741,20.0,144.87,144.8,6.906]
[1723653397940,20.0,144.87,144.78,6.4561]
[1723653398143,20.0,144.87,144.79,6.9065]
[1723653398341,20.0,144.89,144.8,6.9059]
[1723653398858,47.84,144.9,144.82,6.905]
[1723653399060,20.0,144.87,144.78,6.4561]
[1723653399265,20.0,144.87,144.79,6.9063]
[1723653399457,20.0,144.87,144.78,6.4561]
[1723653399765,20.0,144.87,144.78,13.363]
[1723653399961,20.0,144.87,144.79,6.9064]
[1723653400259,20.0,144.89,144.8,6.9059]
[1723653400455,20.0,144.89,144.78,6.4561]
[1723653400770,20.0,144.89,144.8,6.906]
[1723653400956,20.0,144.89,144.78,6.4561]
[1723653401154,20.0,144.89,144.82,6.905]
[1723653401355,47.84,144.9,144.82,6.905]
[1723653401558,20.0,144.91,144.78,6.4561]
[1723653401877,20.0,144.91,144.74,174.78022102]
[1723653401878,20.0,144.83,144.74,174.78022102]
[1723653402165,20.0,144.82,144.74,174.78022102]
[1723653402364,20.0,144.82,144.74,181.68912102]
[1723653402573,47.84,144.83,144.75,6.9082]
[1723653402745,20.0,144.84,144.74,181.68882102]
[1723653402947,0.12549,144.81,144.74,174.78022102]
[1723653403252,0.25098,144.81,144.74,174.78022102]
[1723653403457,0.12549,144.81,144.74,174.78022102]
[1723653403759,20.0,144.82,144.74,174.78022102]
[1723653403985,0.25098,144.81,144.74,174.78022102]
[1723653404266,20.0,144.84,144.74,174.78022102]
[1723653404675,0.12549,144.85,144.74,174.78022102]
[1723653404676,0.12549,144.85,144.77,6.907]
[1723653405051,0.12549,144.85,144.78,6.907]
[1723653405579,20.0,144.91,144.84,6.9041]
[1723653405740,20.0,144.93,144.8,64.1626]
[1723653405942,20.0,144.93,144.84,6.9037]
[1723653406166,20.0,144.93,144.81,6.056]
[1723653406343,20.0,144.93,144.85,6.9032]
[1723653406545,20.0,144.97,144.82,47.84]
[1723653406867,20.0,144.97,144.83,20.0]
[1723653407377,20.0,144.97,144.9,6.9012]
[1723653408069,20.0,144.99,144.9,6.901]
[1723653408656,20.0,145.01,144.95,6.8989]
[1723653408856,20.0,145.01,144.85,47.84]
[1723653408857,20.0,145.01,144.94,6.8993]
[1723653409058,20.0,145.01,144.88,47.84]
[1723653409372,20.0,144.89,144.79,16.4615]
[1723653409860,20.0,144.89,144.81,6.9053]
[1723653410055,20.0,144.91,144.83,6.9046]
[1723653410270,20.0,144.91,144.79,16.4615]
[1723653410271,20.0,144.91,144.82,6.9051]
[1723653410443,0.12549,144.9,144.84,6.904]
[1723653410648,0.25098,144.9,144.84,6.9041]
[1723653410875,0.25098,144.9,144.79,16.4615]
[1723653412659,20.0,144.91,144.85,6.9036]
[1723653412660,0.12549,144.91,144.85,6.9036]
[1723653412858,0.25098,144.92,144.84,6.9041]
[1723653413172,0.25098,144.92,144.85,6.9036]
[1723653413359,0.12549,144.92,144.86,6.9031]
[1723653413682,20.0,144.95,144.86,6.9031]
[1723653413851,20.0,144.95,144.81,47.84]
[1723653414050,47.84,144.97,144.89,6.9013]
[1723653414051,20.0,144.97,144.89,6.9013]
[1723653414245,47.84,145.0,144.8,0.12549]
[1723653414246,20.0,144.99,144.9,6.9012]
[1723653414546,20.0,144.99,144.85,6.0502]
[1723653414751,20.0,144.99,144.86,20.0]
[1723653414965,20.0,145.01,144.87,47.84]
[1723653415178,20.0,145.01,144.94,6.8993]
[1723653415380,20.0,145.03,144.95,6.8988]
[1723653415555,20.0,145.03,144.96,6.8984]
[1723653415755,20.0,144.89,144.79,15.84796348]
[1723653415969,67.84,144.91,144.82,6.905]
[1723653416254,67.84,144.91,144.81,6.9055]
[1723653416475,67.84,144.91,144.79,6.3538]
[1723653416682,20.0,144.91,144.79,6.3538]
[1723653416979,0.12549,144.9,144.83,6.9044]
[1723653417772,0.12549,144.92,144.84,6.9041]
[1723653417984,0.37647,144.92,144.84,6.9041]
[1723653418147,0.25098,144.92,144.84,6.9041]
[1723653418574,0.25098,144.92,144.85,6.9035]
[1723653418890,0.12549,144.92,144.85,6.9035]
[1723653419065,0.12549,144.92,144.86,6.9031]
[1723653419278,20.0,144.93,144.86,6.9031]
[1723653419587,0.12549,144.94,144.87,6.9026]
[1723653419888,20.0,144.97,144.84,47.84]
[1723653420271,20.0,144.99,144.84,47.84]
[1723653420597,20.0,144.99,144.85,20.0]
[1723653420780,20.0,145.01,144.92,6.8999]
[1723653420972,20.0,145.01,144.87,47.84]
[1723653421167,20.0,145.03,144.94,6.8993]
[1723653421572,20.0,145.03,144.88,20.0]
[1723653421873,20.0,145.03,144.89,6.5182]
[1723653422082,53.9289,145.05,144.96,6.8984]
[1723653422083,73.9289,145.05,144.96,6.8984]
[1723653422399,20.0,145.14,144.99,47.84]
[1723653422565,67.84,145.16,145.06,6.8933]
[1723653422759,67.84,145.16,145.0,6.5182]
[1723653422962,0.6221828,145.17,145.09,6.8922]
[1723653423197,0.6221828,145.17,145.01,45.25098]
[1723653423198,0.6221828,145.17,145.1,6.8917]
[1723653423490,0.6221828,145.17,145.05,47.84]
[1723653423491,0.6221828,145.17,145.12,6.8908]
[1723653423872,0.6221828,145.17,144.92,6.5182]
[1723653423873,20.0,145.07,144.92,6.5182]
[1723653424080,20.0,145.07,144.92,54.3582]
[1723653424381,67.84,145.09,144.98,6.8971]
[1723653424589,20.0,145.05,144.92,54.3582]
[1723653424769,47.84,145.09,144.93,47.84]
[1723653424770,20.0,145.08,144.93,47.84]
[1723653425102,20.0,145.07,144.93,47.84]
[1723653425275,20.0,145.12,145.03,6.8946]
[1723653425497,20.0,145.12,144.99,47.84]
[1723653425681,20.0,145.14,145.04,6.8942]
[1723653425991,20.0,145.14,145.02,47.84]
[1723653426183,20.0,145.16,145.02,47.84]
[1723653426766,0.6221828,145.17,145.02,47.84]
[1723653426988,0.6221828,145.17,145.05,47.84]
[1723653427370,0.6221828,145.17,145.09,6.8921]
[1723653427591,0.6221828,145.17,145.1,6.8917]
[1723653428467,0.6221828,145.17,145.11,6.8913]
[1723653428675,0.6221828,145.17,145.12,6.8908]
[1723653429000,0.6221828,145.17,145.08,47.84]
[1723653429699,0.6221828,145.17,145.16,6.8889]
[1723653430389,20.0,145.28,145.14,47.84]
[1723653430599,20.0,145.28,145.2,6.887]
[1723653430798,20.0,145.28,144.97,6.3315]
[1723653430799,20.0,145.13,144.97,6.3315]
[1723653431006,20.0,145.09,144.92,15.1168]
[1723653431295,20.0,145.06,144.92,15.1168]
[1723653431886,0.12549,145.05,144.92,15.1168]
[1723653432090,0.50196,145.05,144.92,15.1168]
[1723653432272,0.37647,145.05,144.92,15.1168]
[1723653433188,0.12549,145.09,144.96,47.84]
[1723653433371,20.0,145.12,144.97,20.0]
[1723653433573,69.5777,145.14,144.97,20.0]
[1723653433574,20.0,145.09,144.97,20.0]
[1723653433772,20.0,145.11,144.97,20.0]
[1723653434191,20.0,145.11,144.99,47.84]
[1723653435518,20.0,145.13,144.99,47.84]
[1723653435713,20.0,145.17,145.02,47.84]
[1723653435991,6.887,145.18,145.0,65.0]
[1723653435992,6.887,145.18,145.05,47.84]
[1723653436495,6.887,145.18,145.06,20.0]
[1723653436875,6.887,145.18,145.08,47.84]
[1723653437693,6.887,145.18,145.09,20.0]
[1723653437879,6.887,145.18,145.11,47.84]
[1723653438081,20.0,145.09,144.86,26.511]
[1723653438404,67.84,145.09,144.92,47.84]
[1723653438572,20.0,145.09,144.92,47.84]
[1723653439400,0.12549,145.07,144.92,47.84]
[1723653439777,20.0,145.06,144.9,47.84]
[1723653440009,0.37647,145.05,144.9,47.84]
[1723653440381,0.25098,145.05,144.9,47.84]
[1723653440591,0.12549,145.05,144.93,47.84]
[1723653440801,0.12549,145.07,144.93,47.84]
[1723653441004,0.12549,145.05,144.9,47.84]
[1723653441169,0.12549,145.01,144.87,47.84]
[1723653441684,0.25098,145.01,144.87,47.84]
[1723653442096,0.12549,145.01,144.87,47.84]
[1723653442308,0.12549,145.03,144.9,47.84]
[1723653442512,0.12549,145.05,144.9,47.84]
[1723653442821,0.12549,145.05,144.93,47.84]
[1723653443189,20.0,145.1,144.96,47.84]
[1723653443788,67.84,145.12,144.97,20.0]
[1723653443993,20.0,145.12,144.97,20.0]
[1723653444823,20.0,145.12,144.98,45.0]
[1723653445010,6.0472,145.13,144.99,47.84]
[1723653445424,20.0,145.16,145.02,47.84]
[1723653448020,20.0,145.16,145.0,0.25098]
[1723653448021,6.887,145.18,145.05,47.84]
[1723653448202,6.887,145.18,145.06,20.0]
[1723653448401,6.887,145.18,145.06,65.0]
[1723653448910,6.887,145.18,145.08,47.84]
[1723653449430,6.887,145.18,145.09,65.25098]
[1723653449627,6.887,145.18,145.11,47.84]
[1723653450616,6.887,145.18,145.09,65.25098]
[1723653450617,20.0,145.14,144.84,22.4095]
[1723653450799,22.3687,145.17,144.84,22.4095]
[1723653450800,20.0,145.1,144.93,47.84]
[1723653451122,20.0,145.08,144.93,47.84]
[1723653451507,20.0,145.06,144.93,47.84]
[1723653451710,0.12549,145.07,144.93,47.84]
[1723653451936,0.25098,145.07,144.93,47.84]
[1723653452106,20.0,145.06,144.93,47.84]
[1723653452307,0.12549,145.05,144.93,47.84]
[1723653452507,0.25098,145.07,144.93,47.84]
[1723653453045,0.12549,145.04,144.9,47.84]
[1723653453205,0.12549,145.02,144.87,47.84]
[1723653453404,0.25098,145.02,144.87,47.84]
[1723653453708,0.12549,145.02,144.87,47.84]
[1723653453903,0.25098,145.04,144.87,47.84]
[1723653453904,0.12549,145.03,144.87,47.84]
[1723653454125,0.25098,145.04,144.84,22.4095]
[1723653454126,0.25098,145.04,144.9,47.84]
[1723653454313,0.12549,145.04,144.9,47.84]
[1723653454523,0.12549,145.03,144.9,47.84]
[1723653454836,0.12549,145.04,144.91,20.0]
[1723653455202,0.12549,145.05,144.91,20.0]
[1723653455422,0.25098,145.05,144.91,20.0]
[1723653455837,0.25098,145.05,144.92,45.0]
[1723653456016,0.25098,145.05,144.93,20.0]
[1723653456219,0.12549,145.06,144.93,20.0]
[1723653456603,0.25098,145.06,144.93,20.0]
[1723653456932,67.84,145.09,144.93,67.84]
[1723653457137,20.0,145.11,144.94,45.12549]
[1723653457425,20.0,145.11,144.95,20.0]
[1723653457639,20.0,145.11,144.96,92.84]
[1723653457800,47.84,145.12,144.97,20.0]
[1723653458004,20.0,145.13,144.97,20.0]
[1723653458502,20.0,145.13,144.99,47.84]
[1723653458702,20.0,145.13,144.93,0.12549]
[1723653458703,20.0,144.98,144.78,0.7463151]
[1723653458915,20.0,144.96,144.8,47.84]
[1723653459117,67.84,144.98,144.8,47.84]
[1723653459529,20.0,144.96,144.8,47.84]
[1723653459741,0.25098,144.95,144.8,47.84]
[1723653461245,0.12549,144.95,144.8,47.84]
[1723653461918,0.12549,144.97,144.83,47.84]
[1723653462238,0.25098,144.97,144.83,47.84]
[1723653462709,0.25098,144.97,144.84,20.0]
[1723653463131,47.84,144.98,144.84,20.0]
[1723653463743,47.84,144.98,144.85,45.25098]
[1723653464243,47.84,144.98,144.86,20.0]
[1723653465248,47.84,144.98,144.71,47.84]
[1723653465249,20.0,144.87,144.71,47.84]
[1723653465622,0.12549,144.86,144.71,47.84]
[1723653465823,0.25098,144.86,144.71,47.84]
[1723653466139,0.12549,144.82,144.7,79.71641535]
[1723653466439,0.25098,144.82,144.7,79.71641535]
[1723653466926,0.12549,144.84,144.7,79.71641535]
[1723653467133,20.37647,144.84,144.7,79.71641535]
[1723653467435,20.25098,144.84,144.7,79.71641535]
[1723653467942,0.12549,144.86,144.7,127.55641535]
[1723653468140,20.25098,144.86,144.7,127.55641535]
[1723653469522,0.25098,144.86,144.7,127.55641535]
[1723653470249,47.96549,144.84,144.7,127.55641535]
[1723653470448,0.12549,144.83,144.7,79.71641535]
[1723653470919,47.96549,144.83,144.7,79.71641535]
[1723653471119,47.84,144.83,144.7,79.71641535]
[1723653471321,0.12549,144.82,144.7,79.71641535]
[1723653471535,47.84,144.83,144.7,79.71641535]
[1723653471752,0.12549,144.84,144.7,79.71641535]
[1723653471927,0.12549,144.85,144.72,6.449]
[1723653472248,0.25098,144.85,144.72,6.449]
[1723653472632,0.25098,144.85,144.7,79.71641535]
[1723653472633,0.12549,144.75,144.7,79.71641535]
[1723653472945,20.0,144.78,144.7,79.71641535]
[1723653472946,67.84,144.78,144.7,79.71641535]
[1723653473115,0.12549,144.76,144.7,79.71641535]
[1723653473917,20.12549,144.77,144.7,79.71641535]
[1723653474246,0.12549,144.77,144.7,79.71641535]
[1723653474448,0.25098,144.77,144.7,79.71641535]
[1723653475349,0.12549,144.77,144.7,79.71641535]
[1723653476640,0.12549,144.78,144.7,79.71641535]
[1723653476951,47.84,144.79,144.7,79.71641535]
[1723653477134,0.12549,144.78,144.7,79.71641535]
[1723653477339,0.12549,144.79,144.7,79.71641535]
[1723653478741,0.12549,144.8,144.7,79.71641535]
[1723653479877,20.0,144.71,144.7,33.40893546]
[1723653480073,67.84,144.69,144.68,157.68977504]
[1723653480275,133.09098,144.69,144.68,88.08977504]
[1723653480448,133.21647,144.69,144.68,88.08977504]
[1723653481070,133.21647,144.69,144.68,84.40977504]
[1723653481254,181.05647,144.69,144.68,84.40977504]
[1723653481860,181.18196,144.69,144.68,84.40977504]
[1723653483146,161.18196,144.69,144.68,84.40977504]
[1723653483350,67.84,144.69,144.68,84.40977504]
[1723653483560,20.0,144.69,144.68,84.40977504]
[1723653484374,20.0,144.71,144.68,84.40977504]
[1723653484669,20.0,144.73,144.68,84.40977504]
[1723653484878,47.84,144.76,144.64,0.8130321]
[1723653484879,20.0,144.65,144.64,0.8130321]
[1723653485075,20.0,144.65,144.62,215.6874597]
[1723653485076,20.0,144.63,144.62,190.27815434]
[1723653486282,20.37647,144.63,144.62,190.27815434]
[1723653486580,20.37647,144.63,144.62,189.27815434]
[1723653486880,0.12549,144.63,144.62,189.27815434]
[1723653487562,20.0,144.67,144.62,189.27815434]
[1723653489884,20.0,144.69,144.62,189.27815434]
[1723653491483,20.0,144.73,144.62,189.27815434]
[1723653491685,20.0,144.75,144.62,189.27815434]
[1723653491868,20.0,144.75,144.64,21.9053]
[1723653492389,20.0,144.77,144.66,47.84]
[1723653492579,20.0,144.79,144.66,47.84]
[1723653492878,20.0,144.82,144.69,47.84]
[1723653493496,20.0,144.67,144.62,189.27815434]
[1723653493656,67.84,144.76,144.62,189.27815434]
[1723653493657,20.0,144.69,144.62,189.27815434]
[1723653494769,0.37647,144.68,144.62,189.27815434]
[1723653495157,0.25098,144.68,144.62,189.27815434]
[1723653496172,20.0,144.65,144.62,189.27815434]
[1723653496353,0.37647,144.64,144.62,189.27815434]
[1723653496565,0.12549,144.64,144.62,189.27815434]
[1723653496872,20.0,144.67,144.62,189.27815434]
[1723653497072,0.12549,144.66,144.62,189.27815434]
[1723653497284,20.0,144.67,144.62,189.27815434]
[1723653497577,47.84,144.72,144.62,189.27815434]
[1723653497578,0.12549,144.68,144.62,189.27815434]
[1723653498371,20.0,144.75,144.62,189.27815434]
[1723653498372,20.0,144.73,144.62,189.27815434]
[1723653498589,47.84,144.75,144.62,189.27815434]
[1723653498590,20.0,144.71,144.62,189.27815434]
[1723653498886,47.84,144.75,144.62,189.27815434]
[1723653498887,20.0,144.73,144.62,189.27815434]
[1723653499880,20.0,144.73,144.62,196.46402]
[1723653500680,20.0,144.73,144.64,15.2572]
[1723653501065,20.0,144.76,144.64,15.2572]
[1723653501990,20.0,144.74,144.64,15.2572]
[1723653503573,47.84,144.78,144.64,15.2572]
[1723653503574,20.0,144.76,144.64,15.2572]
[1723653503766,20.0,144.74,144.64,15.2572]
[1723653503984,47.84,144.83,144.64,15.2572]
[1723653503985,20.0,144.72,144.64,15.2572]
[1723653504689,20.0,144.74,144.64,15.2572]
[1723653504862,20.0,144.72,144.64,15.2572]
[1723653505062,0.12549,144.71,144.64,15.2572]
[1723653505996,20.0,144.72,144.64,15.2572]